bitfinex-derivatives/quotes_SOLF0:USTF0_20250424
["timestamp","ask_amount","ask_price","bid_price","bid_amount"]
[1745466296791,26.0,148.41,148.29,36.33368093]
[1745466296988,10.33368093,148.4,148.31,10.33368093]
[1745466297193,26.0,148.41,148.29,26.0]
[1745466297194,10.33368093,148.38,148.29,36.33368093]
[1745466297389,26.0,148.37,148.29,36.33368093]
[1745466297590,26.0,148.37,148.29,26.0]
[1745466297795,27.9821,148.37,148.29,26.0]
[1745466298200,6.7395,148.35,148.31,6.7408]
[1745466298601,27.9821,148.37,148.29,26.0]
[1745466298902,6.7391,148.36,148.32,6.7406]
[1745466299295,27.9821,148.37,148.32,6.7406]
[1745466299600,27.9821,148.37,148.33,6.7402]
[1745466300500,10.33368093,148.4,148.31,10.33368093]
[1745466300703,26.0,148.39,148.31,10.33368093]
[1745466300898,26.0,148.39,148.29,26.0]
[1745466301097,10.33368093,148.38,148.31,6.741]
[1745466301503,10.33368093,148.38,148.29,26.0]
[1745466302002,28.0794,148.39,148.29,36.33368093]
[1745466302194,28.0794,148.39,148.33,6.7399]
[1745466302399,10.33368093,148.38,148.33,6.7399]
[1745466302903,26.0,148.42,148.35,10.33368093]
[1745466304201,6.7369,148.41,148.34,26.0]
[1745466304695,26.0,148.42,148.35,10.33368093]
[1745466304895,26.0,148.42,148.38,6.7375]
[1745466305203,26.0,148.42,148.34,26.0]
[1745466305502,6.7368,148.41,148.37,6.7383]
[1745466305703,10.33368093,148.39,148.28,363.0303]
[1745466305900,10.33368093,148.34,148.28,3.9737]
[1745466306103,10.33368093,148.34,148.24,38.03368093]
[1745466306295,10.33368093,148.31,148.25,1.8887]
[1745466307504,27.7,148.34,148.25,12.22238093]
[1745466307905,34.44,148.34,148.29,6.7419]
[1745466308199,10.33368093,148.36,148.27,10.33368093]
[1745466308401,2.0491,148.38,148.31,10.33368093]
[1745466308601,38.03368093,148.42,148.33,10.33368093]
[1745466309406,6.737,148.41,148.35,6.7392]
[1745466309704,38.03368093,148.42,148.35,6.7392]
[1745466310506,38.03368093,148.42,148.33,10.33368093]
[1745466310507,6.7376,148.39,148.34,6.7397]
[1745466310706,27.7,148.42,148.34,10.33368093]
[1745466310906,44.06098093,148.46,148.37,10.33368093]
[1745466311103,10.33368093,148.44,148.35,27.7]
[1745466311406,16.52976882,148.44,148.35,27.7]
[1745466311707,16.52976882,148.44,148.36,6.7387]
[1745466311908,29.7552,148.46,148.35,44.22976882]
[1745466312205,6.7355,148.44,148.39,6.7371]
[1745466312406,29.7552,148.46,148.35,27.7]
[1745466312708,6.7348,148.45,148.35,27.7]
[1745466313306,29.7552,148.46,148.35,27.7]
[1745466313706,29.7552,148.46,148.39,6.7373]
[1745466313907,29.7552,148.46,148.35,27.7]
[1745466314307,6.7352,148.44,148.35,27.7]
[1745466314906,29.7552,148.46,148.35,27.7]
[1745466315208,16.52976882,148.45,148.35,27.7]
[1745466315409,6.7359,148.43,148.35,27.7]
[1745466315611,16.52976882,148.45,148.35,27.7]
[1745466316008,6.7356,148.44,148.39,6.737]
[1745466316208,16.52976882,148.45,148.39,6.737]
[1745466316712,6.7357,148.43,148.39,6.737]
[1745466317512,6.7357,148.43,148.4,6.7369]
[1745466317806,16.52976882,148.45,148.35,27.7]
[1745466318612,6.7357,148.43,148.4,6.7369]
[1745466319012,6.7357,148.43,148.35,27.7]
[1745466319306,16.52976882,148.45,148.38,6.7375]
[1745466319515,16.52976882,148.4,148.32,4.059]
[1745466319714,6.7387,148.37,148.33,6.7401]
[1745466319911,16.52976882,148.37,148.29,28.9]
[1745466320306,6.7391,148.36,148.32,6.7405]
[1745466320506,16.52976882,148.37,148.29,28.9]
[1745466321016,30.8368,148.39,148.29,28.9]
[1745466321213,30.8368,148.39,148.29,45.42976882]
[1745466321414,30.8368,148.39,148.29,28.9]
[1745466322520,37.5746,148.39,148.34,6.7394]
[1745466322818,30.8368,148.39,148.29,28.9]
[1745466323019,28.9,148.39,148.35,6.7389]
[1745466323219,28.9,148.39,148.29,28.9]
[1745466323920,35.6378,148.39,148.34,6.7393]
[1745466324321,28.9,148.39,148.29,28.9]
[1745466324621,1.9579,148.38,148.29,28.9]
[1745466325021,6.7384,148.37,148.33,6.74]
[1745466326022,6.7389,148.36,148.32,6.7406]
[1745466326222,1.9579,148.38,148.29,28.9]
[1745466327225,6.7384,148.37,148.33,6.7399]
[1745466327528,1.9579,148.38,148.29,28.9]
[1745466328423,28.9,148.42,148.31,16.52976882]
[1745466328817,6.7368,148.41,148.37,6.7381]
[1745466329021,16.52976882,148.43,148.33,28.9]
[1745466329324,52.16576882,148.43,148.39,6.7375]
[1745466329627,45.42976882,148.43,148.39,6.7375]
[1745466329825,6.7364,148.42,148.38,6.7378]
[1745466330026,45.42976882,148.43,148.34,3.9187]
[1745466330427,6.7368,148.41,148.37,6.7383]
[1745466330827,6.7368,148.41,148.34,3.9187]
[1745466331427,6.7363,148.42,148.34,3.9187]
[1745466331629,45.42976882,148.43,148.34,3.9187]
[1745466332220,28.9,148.46,148.34,3.9187]
[1745466332428,6.7336,148.48,148.44,6.7349]
[1745466332628,1.9077,148.49,148.39,28.9]
[1745466332826,1.9077,148.49,148.4,2.0103]
[1745466333025,1.9077,148.49,148.42,6.736]
[1745466333322,1.9077,148.49,148.4,2.0103]
[1745466333625,1.9077,148.49,148.42,6.736]
[1745466333831,1.9077,148.49,148.4,2.0103]
[1745466334330,6.7345,148.46,148.4,2.0103]
[1745466335028,1.9077,148.49,148.42,6.7358]
[1745466335229,16.52976882,148.48,148.36,28.9]
[1745466335431,16.52976882,148.48,148.36,30.7979]
[1745466336432,16.52976882,148.48,148.4,6.737]
[1745466336632,16.52976882,148.48,148.36,30.7979]
[1745466337029,16.52976882,148.48,148.43,6.7353]
[1745466337433,6.7341,148.47,148.43,6.7353]
[1745466337933,1.9077,148.49,148.4,28.9]
[1745466338135,6.7343,148.46,148.4,28.9]
[1745466338334,1.9077,148.49,148.4,28.9]
[1745466338634,6.734,148.47,148.4,28.9]
[1745466338836,6.734,148.47,148.43,6.7355]
[1745466339637,6.7343,148.46,148.43,6.7355]
[1745466339832,1.9077,148.49,148.43,6.7355]
[1745466340237,6.7342,148.47,148.43,6.7355]
[1745466340435,1.9077,148.49,148.43,6.7355]
[1745466340938,28.9,148.5,148.42,16.52976882]
[1745466341138,28.9,148.5,148.43,2.0601]
[1745466341338,6.7331,148.49,148.43,2.0601]
[1745466341539,6.7331,148.49,148.45,6.7347]
[1745466342434,6.7335,148.48,148.44,6.735]
[1745466342639,28.9,148.5,148.43,2.0601]
[1745466342942,6.7332,148.49,148.45,6.7344]
[1745466343137,28.9,148.5,148.45,6.7344]
[1745466343636,6.7331,148.49,148.45,6.7344]
[1745466343838,30.8193,148.53,148.43,2.0601]
[1745466345045,6.7325,148.5,148.46,6.7343]
[1745466345236,6.7325,148.5,148.43,2.0601]
[1745466345539,6.7332,148.49,148.43,2.0601]
[1745466346142,6.7332,148.49,148.46,6.734]
[1745466346542,6.7327,148.5,148.43,2.0601]
[1745466346843,6.7327,148.5,148.47,6.7335]
[1745466347039,6.7327,148.5,148.43,2.0601]
[1745466347245,6.7327,148.5,148.46,6.7342]
[1745466347444,6.7327,148.5,148.43,2.0601]
[1745466347642,6.7322,148.51,148.43,2.0601]
[1745466347945,28.88,148.53,148.47,6.7336]
[1745466348547,6.7327,148.5,148.47,6.7336]
[1745466348839,28.88,148.53,148.48,6.7334]
[1745466349044,6.7325,148.5,148.48,6.7334]
[1745466349544,39.19717124,148.53,148.48,6.7334]
[1745466349744,1.9908,148.54,148.5,6.7325]
[1745466350248,6.7317,148.52,148.45,10.31717124]
[1745466350841,6.7322,148.51,148.45,10.31717124]
[1745466351146,10.31717124,148.51,148.44,28.88]
[1745466351344,10.31717124,148.51,148.45,6.7344]
[1745466351345,6.7332,148.49,148.45,6.7344]
[1745466351547,28.6,148.51,148.45,10.31717124]
[1745466351947,28.6,148.51,148.48,6.7331]
[1745466352144,40.90797124,148.54,148.48,6.7331]
[1745466352344,40.90797124,148.54,148.45,10.31717124]
[1745466352548,6.7323,148.51,148.47,6.7336]
[1745466352752,10.31717124,148.52,148.44,28.88]
[1745466353148,6.7328,148.5,148.46,6.7341]
[1745466353453,6.7328,148.5,148.44,28.88]
[1745466354254,6.7328,148.5,148.47,6.7338]
[1745466354954,6.7328,148.5,148.48,6.7333]
[1745466355158,6.7332,148.49,148.44,28.88]
[1745466355353,10.31717124,148.52,148.44,28.88]
[1745466355856,6.7332,148.49,148.46,6.7341]
[1745466356053,38.91717124,148.5,148.43,2.0601]
[1745466356548,6.7331,148.49,148.47,6.7338]
[1745466356754,6.7331,148.49,148.43,2.0601]
[1745466356953,38.91717124,148.5,148.43,2.0601]
[1745466357151,6.7327,148.5,148.47,6.7335]
[1745466358152,10.31717124,148.52,148.43,2.0601]
[1745466358353,28.6,148.53,148.44,10.31717124]
[1745466358553,28.6,148.53,148.45,28.6]
[1745466358753,6.7322,148.51,148.48,6.7331]
[1745466359257,6.7325,148.5,148.47,6.7337]
[1745466359453,10.31717124,148.52,148.47,6.7337]
[1745466359759,10.31717124,148.52,148.48,6.7332]
[1745466360657,10.31717124,148.52,148.47,6.7336]
[1745466360860,6.7325,148.5,148.47,6.7336]
[1745466361157,10.31717124,148.52,148.46,6.7341]
[1745466361858,10.31717124,148.52,148.43,12.37727124]
[1745466362057,17.04897124,148.52,148.43,12.37727124]
[1745466362254,10.31717124,148.52,148.43,12.37727124]
[1745466362458,6.7321,148.51,148.49,6.7329]
[1745466362658,28.6,148.53,148.43,12.37727124]
[1745466362956,6.732,148.51,148.48,6.733]
[1745466363261,28.6,148.53,148.43,12.37727124]
[1745466363661,6.7318,148.52,148.49,6.7326]
[1745466364459,1.9908,148.54,148.47,10.31717124]
[1745466364663,562.36,148.56,148.49,10.31717124]
[1745466365063,6.7305,148.55,148.49,10.31717124]
[1745466365759,6.7305,148.55,148.48,2.0342]
[1745466365760,10.31717124,148.59,148.48,2.0342]
[1745466365956,28.6,148.6,148.51,10.31717124]
[1745466366156,10.31717124,148.61,148.51,38.91717124]
[1745466366463,12.24427124,148.64,148.56,10.31717124]
[1745466366661,12.24427124,148.64,148.54,10.31717124]
[1745466366855,6.7271,148.62,148.54,10.31717124]
[1745466367060,28.6,148.63,148.56,10.31717124]
[1745466367463,28.6,148.63,148.61,6.7275]
[1745466367765,1.9271,148.64,148.58,10.31717124]
[1745466367965,1.9271,148.64,148.61,6.7273]
[1745466368469,6.7258,148.65,148.58,10.31717124]
[1745466369163,28.6,148.66,148.62,6.727]
[1745466369359,28.6,148.7,148.6,10.31717124]
[1745466369563,12.34807124,148.69,148.6,10.31717124]
[1745466369762,6.7251,148.67,148.6,10.31717124]
[1745466370064,6.7251,148.67,148.63,6.7262]
[1745466370261,12.34807124,148.69,148.63,6.7262]
[1745466370565,12.34807124,148.69,148.62,6.7269]
[1745466370965,12.34807124,148.69,148.59,28.6]
[1745466371169,10.31717124,148.65,148.59,6.7282]
[1745466371661,10.31717124,148.65,148.6,6.7279]
[1745466371862,28.6,148.66,148.58,10.31717124]
[1745466372364,28.6,148.66,148.6,10.31717124]
[1745466372563,28.58,148.74,148.62,10.31717124]
[1745466372766,6.7255,148.66,148.61,6.7272]
[1745466372965,10.31717124,148.67,148.59,10.31717124]
[1745466373166,28.58,148.68,148.61,10.31717124]
[1745466373766,38.89717124,148.71,148.63,10.31717124]
[1745466373966,40.84577124,148.73,148.63,10.31717124]
[1745466374564,30.5286,148.73,148.62,28.58]
[1745466374862,10.31717124,148.68,148.62,28.58]
[1745466375064,6.7245,148.68,148.64,6.7258]
[1745466375368,28.58,148.69,148.62,28.58]
[1745466375668,28.58,148.69,148.63,10.31717124]
[1745466375866,30.5286,148.73,148.63,10.31717124]
[1745466376071,30.5286,148.73,148.65,10.31717124]
[1745466376265,37.2508,148.73,148.65,10.31717124]
[1745466376869,37.2508,148.73,148.68,6.7239]
[1745466377070,37.2508,148.73,148.65,10.31717124]
[1745466377270,572.07717124,148.76,148.7,6.7231]
[1745466377470,572.07717124,148.76,148.66,28.58]
[1745466377661,6.7226,148.72,148.66,28.58]
[1745466378470,6.7226,148.72,148.69,6.7238]
[1745466378670,6.723,148.71,148.66,28.58]
[1745466378872,1.9625,148.73,148.66,28.58]
[1745466379172,6.723,148.71,148.67,6.7247]
[1745466379472,10.31717124,148.7,148.63,28.58]
[1745466379865,6.7246,148.68,148.64,6.7261]
[1745466380167,10.31717124,148.7,148.63,28.58]
[1745466380368,6.7246,148.68,148.64,6.7258]
[1745466380975,6.7246,148.68,148.65,6.7256]
[1745466381569,6.724,148.69,148.65,6.7256]
[1745466382169,10.31717124,148.7,148.67,6.7247]
[1745466382468,10.31717124,148.7,148.63,28.58]
[1745466382769,17.04067124,148.7,148.65,6.7256]
[1745466382971,17.04067124,148.7,148.63,28.58]
[1745466383473,6.724,148.69,148.65,6.7256]
[1745466383871,6.724,148.69,148.63,28.58]
[1745466384476,17.04097124,148.7,148.66,6.7252]
[1745466385170,6.7239,148.69,148.66,6.7252]
[1745466385568,10.31717124,148.7,148.63,28.58]
[1745466385770,10.31717124,148.7,148.67,6.7246]
[1745466385771,6.7237,148.7,148.67,6.7246]
[1745466385968,32.5871,148.72,148.6,10.31717124]
[1745466386274,10.31717124,148.68,148.6,27.96]
[1745466386479,10.31717124,148.66,148.6,27.96]
[1745466386667,6.7269,148.63,148.59,6.7281]
[1745466386973,10.31717124,148.64,148.55,27.96]
[1745466387175,27.96,148.63,148.55,27.96]
[1745466387371,27.96,148.63,148.55,38.27717124]
[1745466387875,6.7275,148.61,148.57,6.729]
[1745466388080,27.96,148.63,148.55,27.96]
[1745466388967,6.7275,148.61,148.57,6.7291]
[1745466389170,10.31717124,148.6,148.55,27.96]
[1745466389466,16.49081863,148.62,148.55,27.96]
[1745466389671,6.7282,148.6,148.56,6.7295]
[1745466389976,6.7282,148.6,148.52,27.96]
[1745466390983,6.7276,148.61,148.57,6.729]
[1745466391484,34.6868,148.63,148.59,6.7281]
[1745466393176,6.7272,148.62,148.59,6.7281]
[1745466393679,34.6867,148.63,148.6,6.7279]
[1745466394179,27.96,148.63,148.53,16.49081863]
[1745466394484,27.96,148.63,148.59,6.7281]
[1745466394781,27.96,148.63,148.53,16.49081863]
[1745466395177,20.22,148.72,148.53,16.49081863]
[1745466395178,562.6536,148.67,148.53,16.49081863]
[1745466395379,29.9336,148.67,148.56,16.49081863]
[1745466395584,29.9336,148.67,148.57,31.9669]
[1745466395779,46.42441863,148.67,148.57,31.9669]
[1745466396179,6.7261,148.64,148.6,6.7277]
[1745466396381,46.42441863,148.67,148.57,31.9669]
[1745466396785,6.7258,148.65,148.61,6.7272]
[1745466397985,6.7253,148.66,148.62,6.7266]
[1745466398480,6.7253,148.66,148.63,6.7264]
[1745466398783,6.7257,148.65,148.58,16.49081863]
[1745466398984,6.7257,148.65,148.62,6.7269]
[1745466399784,29.9336,148.67,148.63,6.7262]
[1745466400183,29.9336,148.67,148.58,16.49081863]
[1745466400381,36.6586,148.67,148.63,6.7262]
[1745466400587,27.96,148.7,148.61,27.96]
[1745466401085,27.96,148.72,148.61,44.45081863]
[1745466401384,6.724,148.69,148.61,44.45081863]
[1745466401587,6.724,148.69,148.66,6.7252]
[1745466401977,27.96,148.72,148.61,44.45081863]
[1745466402284,22.35881863,148.74,148.67,6.7246]
[1745466402486,6.7233,148.71,148.67,6.7246]
[1745466402682,27.96,148.73,148.61,44.45081863]
[1745466402887,27.96,148.73,148.64,16.49081863]
[1745466403085,34.6821,148.73,148.65,31.8704]
[1745466403281,6.7221,148.73,148.65,31.8704]
[1745466403489,6.7221,148.73,148.65,33.9383]
[1745466403686,1.9082,148.74,148.65,31.8704]
[1745466404087,1.9082,148.74,148.67,16.49081863]
[1745466404380,8.6302,148.74,148.67,16.49081863]
[1745466404586,8.6302,148.74,148.7,6.7233]
[1745466405184,6.7222,148.73,148.69,6.7238]
[1745466405483,16.49081863,148.72,148.65,27.96]
[1745466405683,16.49081863,148.72,148.62,27.96]
[1745466405993,1.9082,148.74,148.62,27.96]
[1745466406287,1.9082,148.74,148.65,16.49081863]
[1745466406487,6.7224,148.73,148.68,6.724]
[1745466406685,6.7224,148.73,148.65,16.49081863]
[1745466407189,8.6299,148.74,148.65,16.49081863]
[1745466407388,1.9082,148.74,148.66,2.0009]
[1745466407688,1.9082,148.74,148.69,6.7236]
[1745466408090,6.7221,148.73,148.66,29.9609]
[1745466408290,1.9082,148.74,148.7,6.7234]
[1745466408491,8.6301,148.74,148.7,6.7234]
[1745466408993,6.7224,148.73,148.69,6.7238]
[1745466409392,1.9082,148.74,148.69,6.7238]
[1745466409993,6.7222,148.73,148.69,6.7238]
[1745466410389,1.9082,148.74,148.66,29.9609]
[1745466410589,18.39901863,148.74,148.66,27.96]
[1745466410790,22.32471863,148.74,148.63,45.09081863]
[1745466410994,6.7234,148.7,148.67,6.7247]
[1745466411190,22.32471863,148.74,148.63,28.6]
[1745466411493,10.29267751,148.71,148.63,28.6]
[1745466411685,10.29267751,148.67,148.62,2.0692]
[1745466412086,10.29267751,148.69,148.62,2.0692]
[1745466412495,6.7247,148.68,148.64,6.7261]
[1745466413191,6.7247,148.68,148.65,6.7256]
[1745466414598,10.29267751,148.69,148.64,6.726]
[1745466414599,6.7248,148.67,148.64,6.726]
[1745466414799,10.29267751,148.69,148.62,2.0692]
[1745466414999,6.7254,148.66,148.63,6.7265]
[1745466415198,10.29267751,148.67,148.6,30.4823]
[1745466415398,2.05,148.68,148.6,30.4823]
[1745466415602,6.7252,148.67,148.63,6.7265]
[1745466415804,6.7252,148.67,148.6,30.4823]
[1745466416803,8.7745,148.68,148.64,6.7261]
[1745466416998,38.89267751,148.71,148.61,10.29267751]
[1745466417200,28.6,148.71,148.63,10.29267751]
[1745466417502,35.3232,148.71,148.67,6.7243]
[1745466417702,28.6,148.71,148.67,6.7243]
[1745466417894,6.7239,148.69,148.64,28.6]
[1745466418097,38.89267751,148.71,148.61,10.29267751]
[1745466418296,10.29267751,148.69,148.61,10.29267751]
[1745466418605,6.7245,148.68,148.65,6.7254]
[1745466418806,10.29267751,148.69,148.65,6.7254]
[1745466419008,38.89267751,148.71,148.61,10.29267751]
[1745466419206,6.7239,148.69,148.66,6.7249]
[1745466420307,28.6,148.71,148.63,10.29267751]
[1745466420898,28.6,148.71,148.67,6.7246]
[1745466421303,38.89267751,148.71,148.62,28.6]
[1745466421499,6.7237,148.7,148.66,6.7249]
[1745466422308,6.7237,148.7,148.67,6.7247]
[1745466422809,38.89267751,148.71,148.67,6.7247]
[1745466422810,45.61587751,148.71,148.67,6.7247]
[1745466423108,35.3232,148.71,148.68,6.7243]
[1745466423310,8.6025,148.73,148.66,28.6]
[1745466423511,1.8802,148.73,148.67,1.9387]
[1745466423810,6.7229,148.72,148.67,1.9387]
[1745466424309,6.7229,148.72,148.69,6.7238]
[1745466424509,8.6025,148.73,148.67,1.9387]
[1745466424709,28.6,148.74,148.67,1.9387]
[1745466425507,10.29267751,148.71,148.61,10.29267751]
[1745466425710,10.29267751,148.69,148.63,28.6]
[1745466425909,38.89267751,148.69,148.63,6.7263]
[1745466426409,10.29267751,148.67,148.63,6.7263]
[1745466426709,38.89267751,148.69,148.64,6.726]
[1745466426910,28.6,148.69,148.62,1.9387]
[1745466427207,17.01617751,148.7,148.66,6.7249]
[1745466427905,17.01617751,148.7,148.67,6.7244]
[1745466427906,10.29267751,148.7,148.67,6.7244]
[1745466428314,6.7231,148.71,148.67,6.7244]
[1745466428515,6.7234,148.7,148.66,6.7251]
[1745466428814,38.89267751,148.72,148.66,6.7251]
[1745466429015,10.29267751,148.7,148.64,6.7259]
[1745466429314,10.29267751,148.7,148.62,1.9387]
[1745466429514,6.7246,148.68,148.65,6.7254]
[1745466430015,6.724,148.69,148.65,6.7254]
[1745466431109,6.7244,148.68,148.65,6.7254]
[1745466432718,6.7257,148.65,148.62,8.6656]
[1745466432907,10.29267751,148.64,148.57,30.6133]
[1745466433110,10.29267751,148.62,148.55,2.0536]
[1745466433307,17.02097751,148.6,148.55,8.7835]
[1745466433613,10.29267751,148.6,148.55,2.0536]
[1745466433807,28.6,148.63,148.55,2.0536]
[1745466433808,10.29267751,148.62,148.55,2.0536]
[1745466434217,10.29267751,148.6,148.55,2.0536]
[1745466434517,6.7292,148.58,148.53,2.0133]
[1745466435021,10.29267751,148.6,148.53,2.0133]
[1745466435022,6.7286,148.59,148.55,6.7299]
[1745466435917,6.7286,148.59,148.56,6.7297]
[1745466436416,6.7281,148.6,148.53,2.0133]
[1745466437522,6.7281,148.6,148.56,6.7295]
[1745466437716,6.7281,148.6,148.53,2.0133]
[1745466438421,6.7281,148.6,148.56,6.7293]
[1745466438617,6.7285,148.59,148.56,6.7293]
[1745466438820,10.29267751,148.6,148.53,2.0133]
[1745466439026,6.7292,148.58,148.53,2.0133]
[1745466439525,6.7293,148.57,148.53,2.0133]
[1745466440320,6.7293,148.57,148.54,6.7304]
[1745466440523,6.7298,148.56,148.53,2.0133]
[1745466440822,27.86,148.59,148.53,2.0133]
[1745466441121,6.7298,148.56,148.53,2.0133]
[1745466441522,6.7295,148.57,148.53,8.744]
[1745466441720,6.7295,148.57,148.53,2.0133]
[1745466442019,27.86,148.59,148.53,2.0133]
[1745466442223,6.7282,148.6,148.53,2.0133]
[1745466442524,38.15267751,148.62,148.53,2.0133]
[1745466443316,6.7282,148.6,148.56,6.7294]
[1745466443616,10.29267751,148.58,148.48,27.86]
[1745466443820,6.731,148.54,148.5,6.7322]
[1745466444020,10.29267751,148.55,148.5,6.7322]
[1745466444720,10.29267751,148.55,148.51,6.732]
[1745466444914,6.7309,148.54,148.51,6.732]
[1745466445622,6.7311,148.53,148.5,6.7323]
[1745466446927,10.29267751,148.55,148.48,29.9093]
[1745466447123,27.86,148.58,148.49,10.29267751]
[1745466447627,6.7306,148.55,148.49,10.29267751]
[1745466448328,6.7307,148.54,148.52,6.7313]
[1745466448624,10.29267751,148.57,148.48,29.9093]
[1745466449026,6.7304,148.55,148.52,6.7313]
[1745466449325,10.29267751,148.57,148.48,29.9093]
[1745466449626,6.7315,148.53,148.5,6.7324]
[1745466450522,10.29267751,148.57,148.48,29.9093]
[1745466450728,10.29267751,148.57,148.48,40.20197751]
[1745466451128,6.7305,148.55,148.52,6.7315]
[1745466452423,6.7307,148.54,148.51,6.732]
[1745466452621,10.29267751,148.55,148.48,29.9093]
[1745466453133,6.7314,148.53,148.5,6.7322]
[1745466455634,10.29267751,148.53,148.48,2.0493]
[1745466455827,10.29267751,148.53,148.45,27.88]
[1745466456628,6.7323,148.51,148.47,6.7337]
[1745466456828,10.29267751,148.53,148.45,27.88]
[1745466457232,12.29657751,148.53,148.45,27.88]
[1745466458132,12.29657751,148.53,148.46,6.7341]
[1745466458531,6.7332,148.49,148.46,6.7341]
[1745466459834,6.7332,148.49,148.47,6.7338]
[1745466460333,12.29657751,148.53,148.45,27.88]
[1745466460731,2.0039,148.53,148.46,10.29267751]
[1745466460932,27.88,148.54,148.48,10.29267751]
[1745466461331,38.17267751,148.57,148.48,10.29267751]
[1745466461531,38.17267751,148.57,148.49,27.88]
[1745466461734,27.88,148.57,148.53,6.7307]
[1745466462630,34.6096,148.57,148.52,6.7313]
[1745466462933,27.88,148.57,148.5,2.0805]
[1745466463230,34.6095,148.57,148.53,6.731]
[1745466464730,27.88,148.57,148.52,6.7314]
[1745466465034,38.17267751,148.57,148.52,6.7314]
[1745466465537,6.73,148.56,148.52,6.7314]
[1745466466938,6.7302,148.55,148.52,6.7314]
[1745466467136,38.17267751,148.57,148.52,6.7314]
[1745466467336,6.7298,148.56,148.52,6.7314]
[1745466467536,6.7298,148.56,148.5,2.0805]
[1745466467834,38.17267751,148.57,148.5,2.0805]
[1745466468137,6.7303,148.55,148.52,6.7316]
[1745466469436,10.29267751,148.55,148.46,42.01497751]
[1745466469739,27.88,148.57,148.46,31.7223]
[1745466469740,10.29267751,148.53,148.46,31.7223]
[1745466469936,38.17267751,148.53,148.46,29.798]
[1745466470238,6.7318,148.52,148.49,6.7328]
[1745466471539,44.90397751,148.53,148.49,6.7328]
[1745466472138,10.29267751,148.55,148.46,40.09067751]
[1745466472342,27.02,148.56,148.46,40.09067751]
[1745466472643,33.75,148.56,148.52,6.7313]
[1745466472843,33.75,148.56,148.46,40.09067751]
[1745466473143,33.75,148.56,148.48,10.29267751]
[1745466473544,6.7302,148.55,148.48,10.29267751]
[1745466474144,6.7302,148.55,148.51,6.7317]
[1745466474543,6.7302,148.55,148.48,10.29267751]
[1745466475145,6.7302,148.55,148.52,6.7313]
[1745466475742,10.29267751,148.55,148.51,6.7318]
[1745466475946,10.29267751,148.55,148.46,40.09067751]
[1745466476748,6.7317,148.52,148.49,6.7326]
[1745466476944,10.29267751,148.55,148.46,40.09067751]
[1745466477645,10.29267751,148.51,148.43,1.9912]
[1745466477847,10.29267751,148.49,148.43,1.9912]
[1745466479043,37.31267751,148.51,148.43,1.9912]
[1745466479350,6.7333,148.49,148.45,6.7345]
[1745466480248,6.7335,148.48,148.44,6.735]
[1745466480747,6.7331,148.49,148.45,6.7347]
[1745466481642,27.02,148.51,148.44,10.29267751]
[1745466481848,27.02,148.51,148.44,37.31267751]
[1745466482050,2.0227,148.52,148.44,37.31267751]
[1745466482246,6.7323,148.51,148.47,6.7335]
[1745466482447,2.0227,148.52,148.47,6.7335]
[1745466482839,12.31537751,148.52,148.43,1.9912]
[1745466483044,10.29267751,148.48,148.42,2.0148]
[1745466483249,10.29267751,148.44,148.36,2.0168]
[1745466483751,27.02,148.45,148.36,2.0168]
[1745466483949,6.7365,148.42,148.37,27.02]
[1745466484151,27.02,148.45,148.37,37.31267751]
[1745466484551,6.7365,148.42,148.37,27.02]
[1745466484953,6.7365,148.42,148.38,6.7377]
[1745466485553,6.7365,148.42,148.37,27.02]
[1745466485753,10.29267751,148.44,148.37,27.02]
[1745466486155,6.7364,148.42,148.38,6.7377]